fUSD/lending_fUSD_20240322
["ID","MTS","AMOUNT","RATE_DAILY","PERIOD"]
[320092321,1711150237169,-500.0,0.00021917,2]
[320092322,1711150237180,-500.0,0.00021917,2]
[320092323,1711150237191,-1120.36,0.00021917,2]
[320092324,1711150237202,-500.0,0.00021917,2]
[320092325,1711150237213,-500.0,0.00021917,2]
[320092326,1711150237224,-1223.14,0.00021917,2]
[320092327,1711150237234,-500.0,0.00021917,2]
[320092328,1711150237245,-500.0,0.00021917,2]
[320092329,1711150237256,-439.62452113,0.00021917,2]
[320092330,1711150237266,-535.28,0.00021917,2]
[320092331,1711150237278,-500.0,0.00021917,2]
[320092332,1711150237289,-500.0,0.00021917,2]
[320092333,1711150237300,-500.0,0.00021917,2]
[320092334,1711150237312,-500.0,0.00021917,2]
[320092335,1711150237324,-550.52,0.00021917,2]
[320092336,1711150237335,-500.0,0.00021917,2]
[320092337,1711150237346,-500.0,0.00021917,2]
[320092338,1711150237358,-2246.35,0.00021917,2]
[320092339,1711150237371,-500.0,0.00021917,2]
[320092340,1711150237383,-500.0,0.00021917,2]
[320092341,1711150237396,-500.0,0.00021917,2]
[320092342,1711150237408,-500.0,0.00021917,2]
[320092343,1711150237419,-500.0,0.00021917,2]
[320092344,1711150237430,-670.03,0.00021917,2]
[320092345,1711150237441,-500.0,0.00021917,2]
[320092346,1711150237452,-502.80153274,0.00021917,2]
[320092347,1711150237463,-1254.94,0.00021917,2]
[320092348,1711150237474,-500.0,0.00021917,2]
[320092349,1711150237486,-2018.58,0.00021917,2]
[320092350,1711150237496,-500.0,0.00021917,2]
[320092351,1711150237507,-500.0,0.00021917,2]
[320092352,1711150237517,-500.0,0.00021917,2]
[320092353,1711150237528,-1892.6,0.00021917,2]
[320092354,1711150237538,-500.0,0.00021917,2]
[320092355,1711150237550,-500.0,0.00021917,2]
[320092356,1711150237561,-500.0,0.00021917,2]
[320092357,1711150237573,-1121.25,0.00021917,2]
[320092358,1711150237584,-500.0,0.00021917,2]
[320092359,1711150237594,-640.89,0.00021917,2]
[320092360,1711150237605,-500.0,0.00021917,2]
[320092361,1711150237615,-500.0,0.00021917,2]
[320092362,1711150237627,-500.0,0.00021917,2]
[320092363,1711150237638,-500.0,0.00021917,2]
[320092364,1711150237651,-500.0,0.00021917,2]
[320092366,1711150237662,-500.0,0.00021917,2]
[320092368,1711150237672,-500.0,0.00021917,2]
[320092369,1711150237683,-2333.69,0.00021917,2]
[320092373,1711150237694,-500.0,0.00021917,2]
[320092376,1711150237705,-500.0,0.00021917,2]
[320092378,1711150237716,-746.25,0.00021917,2]
[320092380,1711150237727,-500.0,0.00021917,2]
[320092382,1711150237738,-500.0,0.00021917,2]
[320092383,1711150237748,-500.0,0.00021917,2]
[320092385,1711150237760,-500.0,0.00021917,2]
[320092387,1711150237771,-516.92430318,0.00021917,2]
[320092388,1711150237782,-500.0,0.00021917,2]
[320092389,1711150237793,-500.0,0.00021917,2]
[320092390,1711150237804,-646.44,0.00021917,2]
[320092391,1711150237816,-500.0,0.00021917,2]
[320092392,1711150237827,-206.5556103,0.00021917,2]
[320092393,1711150237838,-1848.15,0.00021917,2]
[320092394,1711150237849,-500.0,0.00021917,2]
[320092395,1711150237862,-500.0,0.00021917,2]
[320092433,1711150238604,-500.0,0.00021917,2]
[320092438,1711150238634,-500.0,0.00021917,2]
[320092442,1711150238664,-500.0,0.00021917,2]
[320092445,1711150238685,-500.0,0.00021917,2]
[320092447,1711150238698,-500.0,0.00021917,2]
[320092449,1711150238707,-1592.32,0.00021917,2]
[320092451,1711150238716,-500.0,0.00021917,2]
[320092453,1711150238725,-500.21,0.00021917,2]
[320092455,1711150238734,-500.0,0.00021917,2]
[320092458,1711150238744,-500.0,0.00021917,2]
[320092460,1711150238753,-500.0,0.00021917,2]
[320092462,1711150238762,-500.0,0.00021917,2]
[320092463,1711150238771,-912.29,0.00021917,2]
[320092466,1711150238781,-500.0,0.00021917,2]
[320092468,1711150238790,-2329.13,0.00021917,2]
[320092470,1711150238799,-1094.74,0.00021917,2]
[320092472,1711150238809,-1879.4,0.00021917,2]
[320092474,1711150238818,-500.0,0.00021917,2]
[320092476,1711150238827,-500.0,0.00021917,2]
[320092477,1711150238836,-1250.76,0.00021917,2]
[320092480,1711150238846,-500.0,0.00021917,2]
[320092482,1711150238855,-500.0,0.00021917,2]
[320092484,1711150238865,-500.0,0.00021917,2]
[320092485,1711150238874,-500.0,0.00021917,2]
[320092487,1711150238883,-500.0,0.00021917,2]
[320092490,1711150238893,-951.55,0.00021917,2]
[320092492,1711150238905,-500.0,0.00021917,2]
[320092494,1711150238915,-500.0,0.00021917,2]
[320092496,1711150238924,-2983.82,0.00021917,2]
[320092498,1711150238934,-500.0,0.00021917,2]
[320092500,1711150238943,-500.0,0.00021917,2]
[320092502,1711150238953,-500.0,0.00021917,2]
[320092504,1711150238962,-500.0,0.00021917,2]
[320092506,1711150238972,-500.0,0.00021917,2]
[320092507,1711150238983,-500.0,0.00021917,2]
[320092510,1711150238993,-1156.7,0.00021917,2]
[320092511,1711150239002,-500.0,0.00021917,2]
[320092512,1711150239011,-501.8002536,0.00021917,2]
[320092513,1711150239020,-500.0,0.00021917,2]
[320092514,1711150239029,-500.0,0.00021917,2]
[320092515,1711150239039,-500.0,0.00021917,2]
[320092516,1711150239048,-500.0,0.00021917,2]
[320092517,1711150239056,-500.0,0.00021917,2]
[320092518,1711150239065,-502.35978958,0.00021917,2]
[320092519,1711150239074,-500.0,0.00021917,2]
[320092520,1711150239083,-1224.64,0.00021917,2]
[320092521,1711150239092,-500.0,0.00021917,2]
[320092522,1711150239101,-506.33994023,0.00021917,2]
[320092523,1711150239110,-500.0,0.00021917,2]
[320092524,1711150239119,-500.0,0.00021917,2]
[320092525,1711150239130,-2140.25,0.00021917,2]
[320092527,1711150239139,-500.0,0.00021917,2]
[320092529,1711150239150,-935.16,0.00021917,2]
[320092531,1711150239160,-501.42413657,0.00021917,2]
[320092533,1711150239169,-500.0,0.00021917,2]
[320092535,1711150239178,-500.0,0.00021917,2]
[320092537,1711150239189,-500.0,0.00021917,2]
[320092539,1711150239199,-500.0,0.00021917,2]
[320092541,1711150239208,-500.0,0.00021917,2]
[320092543,1711150239217,-1505.75,0.00021917,2]
[320092545,1711150239226,-500.0,0.00021917,2]
[320092547,1711150239235,-500.0,0.00021917,2]
[320092549,1711150239244,-671.03,0.00021917,2]
[320092551,1711150239254,-851.22,0.00021917,2]
[320092553,1711150239263,-500.0,0.00021917,2]
[320092555,1711150239272,-500.0,0.00021917,2]
[320092557,1711150239282,-500.0,0.00021917,2]
[320092559,1711150239291,-829.82,0.00021917,2]
[320092561,1711150239300,-501.24064769,0.00021917,2]
[320092563,1711150239309,-500.0,0.00021917,2]
[320092566,1711150239318,-500.0,0.00021917,2]
[320092568,1711150239328,-500.0,0.00021917,2]
[320092570,1711150239337,-500.0,0.00021917,2]
[320092572,1711150239346,-1677.52,0.00021917,2]
[320092574,1711150239356,-357.14658697,0.00021917,2]
[320092575,1711150239367,-500.0,0.00021917,2]
[320092577,1711150239376,-500.0,0.00021917,2]
[320092579,1711150239386,-1602.64,0.00021917,2]
[320092582,1711150239399,-503.22697928,0.00021917,2]
[320092583,1711150239409,-500.0,0.00021917,2]
[320092586,1711150239418,-500.0,0.00021917,2]
[320092588,1711150239427,-178.62504803,0.00021917,2]
[320092590,1711150239437,-498.82018041,0.00021917,2]
[320092592,1711150239447,-500.0,0.00021917,2]
[320092594,1711150239456,-744.42,0.00021917,2]
[320092596,1711150239465,-728.85,0.00021917,2]
[320092598,1711150239474,-500.0,0.00021917,2]
[320092600,1711150239483,-1037.84,0.00021917,2]
[320092602,1711150239493,-500.0,0.00021917,2]
[320092604,1711150239502,-2481.83,0.00021917,2]
[320092606,1711150239511,-500.0,0.00021917,2]
[320092608,1711150239521,-694.64,0.00021917,2]
[320092610,1711150239530,-500.0,0.00021917,2]
[320092612,1711150239539,-500.0,0.00021917,2]
[320092614,1711150239549,-951.94,0.00021917,2]
[320092616,1711150239558,-500.0,0.00021917,2]
[320092618,1711150239568,-1173.6,0.00021917,2]
[320092620,1711150239577,-500.0,0.00021917,2]
[320092622,1711150239587,-2063.3,0.00021917,2]
[320092624,1711150239596,-500.0,0.00021917,2]
[320092626,1711150239606,-500.0,0.00021917,2]
[320092628,1711150239615,-500.0,0.00021917,2]
[320092630,1711150239624,-620.75,0.00021917,2]
[320092632,1711150239634,-500.0,0.00021917,2]
[320092634,1711150239644,-950.6,0.00021917,2]
[320092636,1711150239658,-500.0,0.00021917,2]
[320092638,1711150239667,-500.0,0.00021917,2]
[320092640,1711150239676,-1090.59,0.00021917,2]
[320092642,1711150239685,-500.0,0.00021917,2]
[320092644,1711150239694,-938.51,0.00021917,2]
[320092646,1711150239703,-500.0,0.00021917,2]
[320092648,1711150239713,-500.0,0.00021917,2]
[320092650,1711150239723,-1191.51,0.00021917,2]
[320092652,1711150239732,-500.0,0.00021917,2]
[320092654,1711150239742,-500.0,0.00021917,2]
[320092656,1711150239751,-500.0,0.00021917,2]
[320092658,1711150239760,-869.07,0.00021917,2]
[320092660,1711150239769,-501.86695686,0.00021917,2]
[320092662,1711150239778,-500.0,0.00021917,2]
[320092664,1711150239787,-547.05,0.00021917,2]
[320092666,1711150239796,-500.0,0.00021917,2]
[320092668,1711150239806,-2057.21,0.00021917,2]
[320092670,1711150239816,-503.48583461,0.00021917,2]
[320092672,1711150239825,-500.0,0.00021917,2]
[320092674,1711150239835,-997.89,0.00021917,2]
[320092676,1711150239844,-500.0,0.00021917,2]
[320092679,1711150239855,-500.0,0.00021917,2]
[320092680,1711150239864,-1332.44,0.00021917,2]
[320092683,1711150239874,-973.64,0.00021917,2]
[320092685,1711150239885,-500.0,0.00021917,2]
[320092687,1711150239894,-500.0,0.00021917,2]
[320092689,1711150239907,-500.0,0.00021917,2]
[320092691,1711150239916,-500.0,0.00021917,2]
[320092693,1711150239926,-2761.29,0.00021917,2]
[320092695,1711150239935,-504.35938274,0.00021917,2]
[320092697,1711150239945,-707.17,0.00021917,2]
[320092699,1711150239954,-2667.12,0.00021917,2]
[320092700,1711150239963,-500.0,0.00021917,2]
[320092703,1711150239973,-500.0,0.00021917,2]
[320092705,1711150239982,-500.0,0.00021917,2]
[320092707,1711150239991,-230.71402572,0.00021917,2]
[320092709,1711150240000,-503.16544272,0.00021917,2]
[320092711,1711150240010,-500.0,0.00021917,2]
[320092713,1711150240019,-500.0,0.00021917,2]
[320092715,1711150240028,-500.0,0.00021917,2]
[320092717,1711150240037,-1227.37,0.00021917,2]
[320092719,1711150240047,-779.73,0.00021917,2]
[320092721,1711150240056,-500.0,0.00021917,2]
[320092723,1711150240065,-500.0,0.00021917,2]
[320092725,1711150240074,-500.0,0.00021917,2]
[320092727,1711150240083,-500.0,0.00021917,2]
[320092729,1711150240092,-500.0,0.00021917,2]
[320092731,1711150240101,-500.0,0.00021917,2]
[320092733,1711150240110,-500.0,0.00021917,2]
[320092735,1711150240119,-500.0,0.00021917,2]
[320092737,1711150240128,-500.0,0.00021917,2]
[320092739,1711150240137,-1442.81,0.00021917,2]
[320092741,1711150240150,-500.0,0.00021917,2]
[320092743,1711150240159,-500.0,0.00021917,2]
[320092745,1711150240168,-500.0,0.00021917,2]
[320092747,1711150240177,-500.0,0.00021917,2]
[320092749,1711150240186,-500.0,0.00021917,2]
[320092751,1711150240195,-500.0,0.00021917,2]
[320092753,1711150240205,-500.0,0.00021917,2]
[320092755,1711150240214,-500.0,0.00021917,2]
[320092757,1711150240223,-500.0,0.00021917,2]
[320092759,1711150240232,-500.0,0.00021917,2]
[320092761,1711150240241,-500.0,0.00021917,2]
[320092763,1711150240250,-1057.13,0.00021917,2]
[320092765,1711150240260,-549.85621028,0.00021917,2]
[320092767,1711150240269,-500.0,0.00021917,2]
[320092769,1711150240278,-500.0,0.00021917,2]
[320092771,1711150240287,-500.0,0.00021917,2]
[320092773,1711150240296,-500.0,0.00021917,2]
[320092775,1711150240306,-500.0,0.00021917,2]
[320092777,1711150240315,-500.0,0.00021917,2]
[320092779,1711150240324,-500.0,0.00021917,2]
[320092781,1711150240334,-763.66,0.00021917,2]
[320092783,1711150240343,-500.0,0.00021917,2]
[320092785,1711150240353,-500.0,0.00021917,2]
[320092788,1711150240362,-500.0,0.00021917,2]
[320092789,1711150240376,-723.14,0.00021917,2]
[320092792,1711150240386,-500.0,0.00021917,2]
[320092794,1711150240399,-500.0,0.00021917,2]
[320092796,1711150240410,-500.0,0.00021917,2]
[320092798,1711150240421,-500.0,0.00021917,2]
[320092800,1711150240431,-2104.45,0.00021917,2]
[320092802,1711150240441,-500.0,0.00021917,2]
[320092804,1711150240451,-500.0,0.00021917,2]
[320092806,1711150240461,-500.0,0.00021917,2]
[320092808,1711150240471,-500.0,0.00021917,2]
[320092810,1711150240481,-978.11,0.00021917,2]
[320092812,1711150240491,-500.0,0.00021917,2]
[320092814,1711150240501,-500.0,0.00021917,2]
[320092816,1711150240510,-866.34,0.00021917,2]
[320092818,1711150240519,-500.0,0.00021917,2]
[320092820,1711150240530,-875.66,0.00021917,2]
[320092822,1711150240540,-916.4,0.00021917,2]
[320092824,1711150240549,-596.14,0.00021917,2]
[320092826,1711150240558,-500.0,0.00021917,2]
[320092828,1711150240568,-684.09,0.00021917,2]
[320092830,1711150240578,-538.96,0.00021917,2]
[320092832,1711150240588,-500.0,0.00021917,2]
[320092834,1711150240597,-500.0,0.00021917,2]
[320092836,1711150240607,-710.06,0.00021917,2]
[320092838,1711150240617,-2644.0,0.00021917,2]
[320092840,1711150240626,-538.12,0.00021917,2]
[320092842,1711150240636,-500.0,0.00021917,2]
[320092844,1711150240649,-500.0,0.00021917,2]
[320092846,1711150240659,-500.0,0.00021917,2]
[320092848,1711150240669,-500.0,0.00021917,2]
[320092850,1711150240678,-669.84,0.00021917,2]
[320092853,1711150240688,-501.39104115,0.00021917,2]
[320092855,1711150240698,-500.0,0.00021917,2]
[320092856,1711150240707,-465.45859138,0.00021917,2]
[320092858,1711150240717,-875.8,0.00021917,2]
[320092861,1711150240726,-500.0,0.00021917,2]
[320092863,1711150240736,-1166.17,0.00021917,2]
[320092865,1711150240746,-500.0,0.00021917,2]
[320092867,1711150240756,-2205.05,0.00021917,2]
[320092869,1711150240765,-500.0,0.00021917,2]
[320092871,1711150240775,-1494.62,0.00021917,2]
[320092873,1711150240784,-500.0,0.00021917,2]
[320092875,1711150240793,-659.02,0.00021917,2]
[320092876,1711150240803,-500.0,0.00021917,2]
[320092878,1711150240812,-500.0,0.00021917,2]
[320092881,1711150240822,-500.0,0.00021917,2]
[320092882,1711150240831,-500.0,0.00021917,2]
[320092885,1711150240841,-1876.69,0.00021917,2]
[320092887,1711150240851,-808.45,0.00021917,2]
[320092889,1711150240861,-500.0,0.00021917,2]
[320092891,1711150240870,-1339.63,0.00021917,2]
[320092893,1711150240880,-2095.04,0.00021917,2]
[320092895,1711150240889,-500.0,0.00021917,2]
[320092897,1711150240903,-500.0,0.00021917,2]
[320092906,1711150240988,-1744.19,0.00021917,2]
[320092908,1711150240999,-500.0,0.00021917,2]
[320092910,1711150241009,-500.0,0.00021917,2]
[320092912,1711150241019,-500.0,0.00021917,2]
[320092914,1711150241028,-612.12,0.00021917,2]
[320092916,1711150241038,-500.0,0.00021917,2]
[320092918,1711150241047,-638.00337608,0.00021917,2]
[320092920,1711150241057,-500.0,0.00021917,2]
[320092922,1711150241067,-1377.1,0.00021917,2]
[320092924,1711150241076,-500.0,0.00021917,2]
[320092926,1711150241085,-703.26,0.00021917,2]
[320092928,1711150241095,-500.0,0.00021917,2]
[320092930,1711150241105,-500.0,0.00021917,2]
[320092932,1711150241114,-1012.37,0.00021917,2]
[320092933,1711150241124,-1777.37,0.00021917,2]
[320092934,1711150241133,-500.0,0.00021917,2]
[320092935,1711150241143,-500.0,0.00021917,2]
[320092936,1711150241155,-500.0,0.00021917,2]
[320092937,1711150241164,-501.97326185,0.00021917,2]
[320092938,1711150241174,-500.0,0.00021917,2]
[320092939,1711150241183,-500.0,0.00021917,2]
[320092940,1711150241192,-500.0,0.00021917,2]
[320092941,1711150241201,-500.0,0.00021917,2]
[320092942,1711150241211,-5232.37,0.00021917,2]
[320092943,1711150241220,-500.0,0.00021917,2]
[320092944,1711150241229,-500.0,0.00021917,2]
[320092945,1711150241239,-500.56543413,0.00021917,2]
[320092946,1711150241248,-500.0,0.00021917,2]
[320092947,1711150241258,-1733.17,0.00021917,2]
[320092948,1711150241267,-1678.2,0.00021917,2]
[320092949,1711150241277,-500.64293372,0.00021917,2]
[320092950,1711150241287,-500.0,0.00021917,2]
[320092951,1711150241296,-500.0,0.00021917,2]
[320092952,1711150241305,-500.0,0.00021917,2]
[320092953,1711150241314,-500.0,0.00021917,2]
[320092954,1711150241324,-635.62,0.00021917,2]
[320092955,1711150241334,-501.85833386,0.00021917,2]
[320092956,1711150241343,-500.0,0.00021917,2]
[320092957,1711150241354,-501.18998474,0.00021917,2]
[320092958,1711150241367,-756.4,0.00021917,2]
[320092959,1711150241376,-500.0,0.00021917,2]
[320092960,1711150241386,-500.0,0.00021917,2]
[320092961,1711150241398,-1333.69,0.00021917,2]
[320092963,1711150241407,-1134.12,0.00021917,2]
[320092965,1711150241416,-500.0,0.00021917,2]
[320092967,1711150241426,-1519.21,0.00021917,2]
[320092969,1711150241435,-500.0,0.00021917,2]
[320092971,1711150241446,-500.0,0.00021917,2]
[320092973,1711150241455,-500.0,0.00021917,2]
[320092975,1711150241465,-500.0,0.00021917,2]
[320092977,1711150241474,-1448.25,0.00021917,2]
[320092979,1711150241484,-1406.72,0.00021917,2]
[320092981,1711150241493,-1946.55,0.00021917,2]
[320092983,1711150241503,-500.0,0.00021917,2]
[320092985,1711150241512,-1007.17,0.00021917,2]
[320092987,1711150241522,-502.47569768,0.00021917,2]
[320092989,1711150241531,-2070.25,0.00021917,2]
[320092991,1711150241541,-1632.89,0.00021917,2]
[320092993,1711150241551,-500.0,0.00021917,2]
[320092996,1711150241560,-500.0,0.00021917,2]
[320092997,1711150241570,-500.0,0.00021917,2]
[320092999,1711150241579,-407.30515265,0.00021917,2]
[320093001,1711150241589,-539.16,0.00021917,2]
[320093004,1711150241599,-1951.07,0.00021917,2]
[320093006,1711150241608,-500.0,0.00021917,2]
[320093007,1711150241618,-500.0,0.00021917,2]
[320093010,1711150241627,-500.0,0.00021917,2]
[320093011,1711150241636,-500.0,0.00021917,2]
[320093013,1711150241647,-2260.85,0.00021917,2]
[320093015,1711150241656,-529.82,0.00021917,2]
[320093017,1711150241667,-500.0,0.00021917,2]
[320093019,1711150241677,-500.0,0.00021917,2]
[320093022,1711150241686,-692.44,0.00021917,2]
[320093024,1711150241696,-1123.38,0.00021917,2]
[320093026,1711150241705,-500.0,0.00021917,2]
[320093028,1711150241715,-500.0,0.00021917,2]
[320093030,1711150241724,-507.69,0.00021917,2]
[320093031,1711150241733,-500.0,0.00021917,2]
[320093033,1711150241742,-500.0,0.00021917,2]
[320093035,1711150241752,-500.0,0.00021917,2]
[320093037,1711150241761,-500.0,0.00021917,2]
[320093039,1711150241771,-1265.77,0.00021917,2]
[320093041,1711150241780,-500.0,0.00021917,2]
[320093042,1711150241789,-1148.84,0.00021917,2]
[320093043,1711150241798,-688.84,0.00021917,2]
[320093044,1711150241808,-1597.98,0.00021917,2]
[320093045,1711150241818,-500.0,0.00021917,2]
[320093046,1711150241827,-500.0,0.00021917,2]
[320093047,1711150241837,-500.0,0.00021917,2]
[320093048,1711150241847,-602.53,0.00021917,2]
[320093049,1711150241857,-500.0,0.00021917,2]
[320093050,1711150241866,-500.0,0.00021917,2]
[320093051,1711150241876,-883.1,0.00021917,2]
[320093052,1711150241886,-301.27351059,0.00021917,2]
[320093054,1711150241896,-536.58,0.00021917,2]
[320093056,1711150241906,-1167.88,0.00021917,2]
[320093058,1711150241916,-500.0,0.00021917,2]
[320093060,1711150241925,-500.0,0.00021917,2]
[320093062,1711150241935,-500.0,0.00021917,2]
[320093064,1711150241944,-500.0,0.00021917,2]
[320093066,1711150241953,-500.0,0.00021917,2]
[320093068,1711150241963,-500.54775828,0.00021917,2]
[320093070,1711150241973,-625.67,0.00021917,2]
[320093072,1711150241982,-500.53491787,0.00021917,2]
[320093074,1711150241991,-658.18,0.00021917,2]
[320093075,1711150242001,-1120.4,0.00021917,2]
[320093077,1711150242010,-1176.26,0.00021917,2]
[320093079,1711150242019,-500.0,0.00021917,2]
[320093081,1711150242029,-500.0,0.00021917,2]
[320093083,1711150242038,-500.0,0.00021917,2]
[320093085,1711150242047,-500.0,0.00021917,2]
[320093087,1711150242057,-500.0,0.00021917,2]
[320093089,1711150242066,-722.87,0.00021917,2]
[320093091,1711150242076,-500.0,0.00021917,2]
[320093093,1711150242085,-974.89,0.00021917,2]
[320093095,1711150242094,-575.59,0.00021917,2]
[320093097,1711150242103,-1598.76,0.00021917,2]
[320093099,1711150242112,-500.0,0.00021917,2]
[320093101,1711150242121,-500.0,0.00021917,2]
[320093103,1711150242130,-500.0,0.00021917,2]
[320093105,1711150242140,-500.0,0.00021917,2]
[320093107,1711150242150,-2291.82,0.00021917,2]
[320093109,1711150242159,-503.811785,0.00021917,2]
[320093111,1711150242169,-500.0,0.00021917,2]
[320093113,1711150242179,-980.01,0.00021917,2]
[320093115,1711150242188,-500.0,0.00021917,2]
[320093117,1711150242197,-1526.15,0.00021917,2]
[320093119,1711150242206,-500.0,0.00021917,2]
[320093121,1711150242216,-597.28,0.00021917,2]
[320093123,1711150242225,-500.0,0.00021917,2]
[320093126,1711150242235,-803.46,0.00021917,2]
[320093127,1711150242244,-500.0,0.00021917,2]
[320093129,1711150242254,-1691.36,0.00021917,2]
[320093131,1711150242263,-500.0,0.00021917,2]
[320093133,1711150242273,-500.0,0.00021917,2]
[320093135,1711150242285,-1829.72,0.00021917,2]
[320093137,1711150242294,-500.0,0.00021917,2]
[320093139,1711150242303,-500.0,0.00021917,2]
[320093141,1711150242312,-944.23,0.00021917,2]
[320093143,1711150242321,-510.37514638,0.00021917,2]
[320093145,1711150242331,-1697.95,0.00021917,2]
[320093147,1711150242340,-500.0,0.00021917,2]
[320093149,1711150242349,-500.0,0.00021917,2]
[320093151,1711150242358,-500.0,0.00021917,2]
[320093153,1711150242369,-921.97,0.00021917,2]
[320093155,1711150242378,-500.0,0.00021917,2]
[320093157,1711150242388,-500.0,0.00021917,2]
[320093159,1711150242398,-1055.54,0.00021917,2]
[320093161,1711150242408,-500.0,0.00021917,2]
[320093163,1711150242416,-500.0,0.00021917,2]
[320093165,1711150242426,-500.0,0.00021917,2]
[320093167,1711150242435,-500.0,0.00021917,2]
[320093169,1711150242446,-500.0,0.00021917,2]
[320093170,1711150242455,-500.0,0.00021917,2]
[320093171,1711150242465,-513.97,0.00021917,2]
[320093172,1711150242474,-500.0,0.00021917,2]
[320093173,1711150242483,-500.0,0.00021917,2]
[320093174,1711150242496,-691.19,0.00021917,2]
[320093175,1711150242505,-500.0,0.00021917,2]
[320093176,1711150242515,-500.0,0.00021917,2]
[320093177,1711150242524,-500.0,0.00021917,2]
[320093178,1711150242533,-2337.81,0.00021917,2]
[320093179,1711150242543,-1242.63,0.00021917,2]
[320093180,1711150242553,-500.0,0.00021917,2]
[320093181,1711150242563,-500.0,0.00021917,2]
[320093182,1711150242572,-500.0,0.00021917,2]
[320093183,1711150242581,-500.0,0.00021917,2]
[320093184,1711150242591,-500.0,0.00021917,2]
[320093185,1711150242600,-565.09,0.00021917,2]
[320093187,1711150242610,-500.0,0.00021917,2]
[320093189,1711150242620,-693.29,0.00021917,2]
[320093191,1711150242629,-785.37,0.00021917,2]
[320093193,1711150242638,-500.0,0.00021917,2]
[320093195,1711150242648,-764.84,0.00021917,2]
[320093197,1711150242658,-500.0,0.00021917,2]
[320093199,1711150242666,-500.0,0.00021917,2]
[320093201,1711150242675,-500.0,0.00021917,2]
[320093203,1711150242684,-500.0,0.00021917,2]
[320093205,1711150242693,-500.0,0.00021917,2]
[320093207,1711150242702,-500.0,0.00021917,2]
[320093208,1711150242711,-500.0,0.00021917,2]
[320093209,1711150242720,-196.92952035,0.00021917,2]
[320093210,1711150242729,-500.0,0.00021917,2]
[320093211,1711150242738,-500.0,0.00021917,2]
[320093212,1711150242747,-500.0,0.00021917,2]
[320093213,1711150242757,-664.76,0.00021917,2]
[320093214,1711150242766,-990.4,0.00021917,2]
[320093215,1711150242775,-500.0,0.00021917,2]
[320093216,1711150242785,-500.0,0.00021917,2]
[320093217,1711150242794,-877.57,0.00021917,2]
[320093219,1711150242803,-1380.9,0.00021917,2]
[320093221,1711150242812,-500.0,0.00021917,2]
[320093223,1711150242821,-500.0,0.00021917,2]
[320093225,1711150242830,-1011.38,0.00021917,2]
[320093227,1711150242839,-500.0,0.00021917,2]
[320093229,1711150242848,-500.0,0.00021917,2]
[320093231,1711150242858,-500.0,0.00021917,2]
[320093233,1711150242867,-1940.6,0.00021917,2]
[320093235,1711150242876,-500.0,0.00021917,2]
[320093236,1711150242885,-724.6,0.00021917,2]
[320093237,1711150242895,-500.0,0.00021917,2]
[320093238,1711150242905,-576.94,0.00021917,2]